Cogmind - Beta 10.2 @@@ ROGUE MODE // 2021.12.22 @ 18:30:38 Player: Malakyel Result: Destroyed by as-69797 with Assembled Heavy Rifle Performance ------------- Evolutions (0) 0 Regions Visited (3) 600 Robots Destroyed (12) 60 Value Destroyed (306) 306 Prototype IDs (2) 40 Alien Tech Used (0) 0 Bonus (0) 0 TOTAL SCORE: 1006 Bonus ------- None Cogmind --------- Core Integrity 0/250 Matter 185/300 Energy 245/265 System Corruption 12% Temperature Cool (0) Movement Core (750) Ox14 Location -10/Exiles Parts ------- > --- POWER (1) -------- Improved Ion Engine > --- PROPULSION (2) --- (None) > --- UTILITY (2) ------ High-capacity Storage Unit Power Shielding > --- WEAPON (2) ------- Light Cannon > --- INVENTORY (12) --- Improved Ion Engine Nuclear Core Fission Core Light Fission Core High-capacity Storage Unit Small Matter Pod (50) Light Armor Plating Field Recycling Unit (0) Mining Laser Peak State ------------ > --- POWER ------------ Improved Ion Engine > --- PROPULSION ------- Aluminum Leg Aluminum Leg > --- UTILITY ---------- High-capacity Storage Unit Signal Interpreter > --- WEAPON ----------- Small Laser Light Cannon > --- INVENTORY -------- Improved Ion Engine Improved Ion Engine High-capacity Storage Unit Small Matter Pod Power Shielding Light Armor Plating Field Recycling Unit Mining Laser Mining Laser [Rating: 9] Favorites ----------- Power Improved Ion Engine Engine Improved Ion Engine Propulsion Light Treads Treads Light Treads Leg Aluminum Leg Wheel Compact Wheel Utility Signal Interpreter Storage High-capacity Storage Unit Processor Signal Interpreter Weapon Light Cannon Energy Gun Medium Laser Ballistic Gun Assault Rifle Ballistic Cannon Light Cannon Special Weapon Mining Laser Build | -11 -10 -10 -10 ------- Run | Scr Mat Min Exi Slots Evolved . | . . . . Power . | . . . . Propulsion . | . . . . Utility . | . . . . Weapon . | . . . . Parts Attached 34 | 5 16 9 4 Power 6 | 1 4 . 1 Engine 6 | 1 4 . 1 Core . | . . . . Reactor . | . . . . Propulsion 6 | 2 4 . . Treads 2 | 2 . . . Leg 2 | . 2 . . Wheel 2 | . 2 . . Hover . | . . . . Flight . | . . . . Utility 6 | 1 4 . 1 Device . | . . . . Storage 4 | 1 3 . . Processor 1 | . 1 . . Hackware . | . . . . Protection 1 | . . . 1 Artifact . | . . . . Weapon 16 | 1 4 9 2 Energy Gun 6 | . 3 2 1 Energy Cannon . | . . . . Ballistic Gun 3 | 1 . 2 . Ballistic Cannon 3 | . 1 1 1 Launcher . | . . . . Special Weapon 4 | . . 4 . Impact Weapon . | . . . . Slashing Weapon . | . . . . Piercing Weapon . | . . . . Special Melee Weapon . | . . . . Unidentified Prototypes . | . . . . Parts Lost 12 | . 4 3 5 Power 1 | . . 1 . Propulsion 3 | . 1 . 2 Utility 1 | . . 1 . Weapon 7 | . 3 1 3 Highest Loss Streak 5 | . 2 3 5 Average Slot Usage (%) 92 | . 90 98 75 Engine 13 | . 14 13 8 Treads 11 | . 18 . . Leg 11 | . 1 28 26 Wheel 4 | . 7 . . Storage 14 | . 14 14 14 Processor 12 | . 13 13 . Energy Gun 6 | . 6 8 . Ballistic Gun 5 | . 6 . 26 Ballistic Cannon 7 | . 7 8 . Special Weapon 3 | . . 10 . Naked Turns . | . . . . Heaviest Build 43 | 9 43 43 41 Greatest Support 40 | 40 40 20 20 Greatest Overweight (x) 3 | . 2 2 3 Average Overweight (x) 1 | . 1 1 1 Largest Inventory Capacity 12 | 6 12 12 12 Average Capacity 10 | 5 10 12 12 Most Carried 12 | 3 12 11 12 Average Carried 7 | 2 8 9 11 Final Capacity 12 | 6 12 12 12 Final Carried 10 | 3 9 10 9 Class Distribution -------------------- 97% | Mutant Dominant Class ---------------- Mutant | -10/Materials Mutant | -10/Mines Scavenger-Mutant | -10/Exiles Resources | -11 -10 -10 -10 ----------- Run | Scr Mat Min Exi Matter Collected 629 | 271 317 41 . Remotely . | . . . . Salvage Created 464 | 98 335 31 . Parts 18 | . 12 6 . Haulers Intercepted . | . . . . Recyclers Shooed . | . . . . Parts Field Recycled . | . . . . Retrieved Matter . | . . . . Parts Self-Destructed . | . . . . Prevented . | . . . . Kills | -11 -10 -10 -10 ------- Run | Scr Mat Min Exi Combat Hostiles Destroyed 10 | . 7 3 . Guns 3 | . 3 . . Cannons 7 | . 4 3 . Classes Destroyed 3 | 1 1 1 . Recycler 2 | 1 1 . . Swarmer 3 | . . 3 . Grunt 7 | . 7 . . Best Kill Streak 3 | 1 3 3 . Combat Bots Only 3 | . 2 3 . Max Kills in Single Turn 1 | 1 1 1 . Gunslinging . | . . . . Exploded . | . . . . Melee . | . . . . Uniques/NPCs Destroyed . | . . . . Combat | -11 -10 -10 -10 -------- Run | Scr Mat Min Exi Damage Taken 1518 | . 693 310 515 Core 258 | . 79 51 128 Absorbed by Shields . | . . . . Core Remaining (%) 100 | 100 . . . Volleys Fired 68 | 7 41 15 5 Largest 2 | 1 2 2 2 Hottest 200 | 20 75 200 40 Shots Fired 111 | 7 67 29 8 Gun 71 | 7 50 7 7 Cannon 25 | . 17 7 1 Launcher . | . . . . Special 15 | . . 15 . Kinetic 62 | 7 40 7 8 Thermal 49 | . 27 22 . Explosive . | . . . . Electromagnetic . | . . . . Robot Hit Streak 9 | 5 9 3 3 Robot Miss Streak 3 | 2 3 1 3 Penetration Max . | . . . . Secondary Targets . | . . . . Shots Hit Robots 51 | 5 40 2 4 Core Hits 23 | 2 15 3 3 Critical Hits . | . . . . Critical Kills . | . . . . Critical Parts Destroyed . | . . . . Melee Attacks . | . . . . Impact . | . . . . Slashing . | . . . . Piercing . | . . . . Sneak Attacks . | . . . . Combat Hostiles . | . . . . Follow-up Attacks . | . . . . Damage Inflicted 761 | 65 612 51 33 Guns 540 | 65 442 . 33 Cannons 221 | . 170 51 . Explosions . | . . . . Melee . | . . . . Ramming . | . . . . Kinetic 517 | 65 368 51 33 Thermal 244 | . 244 . . Explosive . | . . . . Electromagnetic . | . . . . Impact . | . . . . Slashing . | . . . . Piercing . | . . . . Highest Corruption 12 | . . 11 12 Average Corruption 11 | . . 11 11 Corruption Purged . | . . . . Effects 5 | . . . 5 Matter Fused 2 | . . . 2 Misfires 1 | . . . 1 Misdirections 1 | . . . 1 Weapon Failures 1 | . . . 1 Overload Shots . | . . . . Overflow Damage . | . . . . Projectiles . | . . . . Explosions . | . . . . Melee . | . . . . Knockbacks 1 | . 1 . . Impact . | . . . . Kinetic 1 | . 1 . . Secondary . | . . . . Self-Inflicted Damage . | . . . . Shots . | . . . . Rammed . | . . . . Targets Rammed . | . . . . Kicked . | . . . . Crushed . | . . . . Highest Temperature 165 | . 165 148 11 Average Temperature 56 | . 53 63 2 Received Heat Transfer 387 | . 387 . . Siege Activations . | . . . . Robots Corrupted . | . . . . Combat Hostiles . | . . . . Parts Fried . | . . . . Impact Corruptions . | . . . . Robots Melted . | . . . . Combat Hostiles . | . . . . Parts Melted 1 | . 1 . . Heat Transferred 716 | . 716 . . Parts Sabotaged . | . . . . Parts Stolen . | . . . . Parts Stripped . | . . . . Power Chain Reactions . | . . . . Missiles Intercepted . | . . . . Alert | -11 -10 -10 -10 ------- Run | Scr Mat Min Exi Peak Influence 110 | 5 110 92 . Initial 42 | . 3 42 . Average 27 | . 30 32 . Maximum Alert Level . | . . . . Low Security (%) 100 | 100 100 100 . Level 1 . | . . . . Level 2 . | . . . . Level 3 . | . . . . Level 4 . | . . . . Level 5 . | . . . . High Security . | . . . . Max Security . | . . . . Squads Dispatched 4 | . 4 . . Investigation 1 | . 1 . . Extermination . | . . . . Reinforcement 3 | . 3 . . Assault . | . . . . Garrison . | . . . . Intercept . | . . . . Construction Impeded . | . . . . Haulers Reinforced . | . . . . Stealth | -11 -10 -10 -10 --------- Run | Scr Mat Min Exi Distress Signals . | . . . . Communications Jammed . | . . . . Distress Signals . | . . . . Times Spotted 26 | . 15 3 8 Peak Tracking Total 9 | . 4 3 9 Tactical Retreats 2 | . 2 . . Traps | -11 -10 -10 -10 ------- Run | Scr Mat Min Exi Traps Triggered 1 | . 1 . . Indirectly . | . . . . Trap Hack Attempts . | . . . . Triggered . | . . . . Disarmed . | . . . . Reprogrammed . | . . . . Reused . | . . . . Traps Extracted . | . . . . Installed . | . . . . Triggered . | . . . . Machines | -11 -10 -10 -10 ---------- Run | Scr Mat Min Exi Machines Disabled . | . . . . Max in Single Turn . | . . . . Machines Sabotaged . | . . . . Garrisons Compromised . | . . . . Overloaded Fab Kills . | . . . . Fab Network Shutdowns . | . . . . Hacking | -11 -10 -10 -10 --------- Run | Scr Mat Min Exi Machines Accessed 1 | . 1 . . Terminals 1 | . 1 . . Fabricators . | . . . . Repair Stations . | . . . . Recycling Units . | . . . . Scanalyzers . | . . . . Garrison Access . | . . . . Total Hacks 2 | . 2 . . Successful 1 | . 1 . . Failed 1 | . 1 . . Catastrophic . | . . . . Database Lockouts . | . . . . Manual . | . . . . Terminals 2 | . 2 . . Fabricators . | . . . . Repair Stations . | . . . . Recycling Units . | . . . . Scanalyzers . | . . . . Garrison Access . | . . . . Terminal Hacks 1 | . 1 . . Prototype ID Bank 1 | . 1 . . Fabricator Hacks . | . . . . Repair Station Hacks . | . . . . Recycling Unit Hacks . | . . . . Scanalyzer . | . . . . Garrison Access Hacks . | . . . . Unauthorized Hacks . | . . . . Terminals . | . . . . Fabricators . | . . . . Repair Stations . | . . . . Recycling Units . | . . . . Scanalyzers . | . . . . Garrison Access . | . . . . Data Cores Recovered . | . . . . Used . | . . . . Hacking Detections 1 | . 1 . . Full Trace Events . | . . . . Feedback Events . | . . . . Feedback Blocked . | . . . . Robot Schematics Acquired . | . . . . Robots Built . | . . . . Matter . | . . . . Time . | . . . . Total Robot Build Rating . | . . . . Part Schematics Acquired . | . . . . Parts Built . | . . . . Matter . | . . . . Time . | . . . . Total Part Build Rating . | . . . . Parts Repaired . | . . . . Time . | . . . . Parts Recycled . | . . . . Recycled Matter . | . . . . Retrieved Matter . | . . . . Retrieved Components . | . . . . Parts Scanalyzed . | . . . . Part Schematics Acquired . | . . . . Parts Damaged . | . . . . Bothacking | -11 -10 -10 -10 ------------ Run | Scr Mat Min Exi Used RIF Installer . | . . . . Robots Hacked . | . . . . Non-combat . | . . . . Combat . | . . . . Robot Hacks Applied . | . . . . Relay Couplers Released . | . . . . Robots Rewired . | . . . . Allies Hacked . | . . . . Hacks Repelled . | . . . . Allies | -11 -10 -10 -10 -------- Run | Scr Mat Min Exi Total Allies 1 | . . 1 . Largest Group 1 | . . 1 . Highest-Rated Group 31 | . . 31 . Highest-Rated Ally 31 | . . 31 . Total Orders . | . . . . Ally Attacks . | . . . . Total Damage . | . . . . Kills . | . . . . Allies Corrupted . | . . . . Allies Melted . | . . . . Intel | -11 -10 -10 -10 ------- Run | Scr Mat Min Exi Robot Analysis Total . | . . . . Derelict Logs Recovered 1 | . . 1 . Drone Launches . | . . . . Drone Recoveries . | . . . . Exploration | -11 -10 -10 -10 ------------- Run | Scr Mat Min Exi Turns Passed 2195 | 305 1157 657 76 Spaces Moved 1250 | 175 725 316 34 Core 3 | 3 . . . Treads 459 | 172 287 . . Legs 386 | . 36 316 34 Wheels 402 | . 402 . . Hover . | . . . . Flight . | . . . . Fastest Speed 50 | 50 100 150 150 Average Speed 152 | 158 138 179 165 Slowest Speed 210 | 160 180 180 210 Overloaded Moves . | . . . . Propulsion Burnouts . | . . . . Robots Hopped . | . . . . Cave-ins Triggered 1 | . . 1 . Exploration Rate (%) 28 | 8 54 40 10 Regions Visited 3 Branch Regions 2 Pre-discovered Areas 1 | . . 1 . Known Exits Taken 1 | . 1 . . Unknown Exits Taken 2 | 1 . 1 . Scrap Searched 1 | . . 1 . Spaces Dug 12 | . . 12 . Terrain Destroyed 13 | . . 13 . Melee . | . . . . Projectile 13 | . . 13 . AOE . | . . . . Terrain Rammed . | . . . . Walls Destroyed . | . . . . Machines Disabled . | . . . . Actions | -11 -10 -10 -10 --------- Run | Scr Mat Min Exi Total 1398 | 196 813 343 46 Wait 4 | 2 . 2 . Move 1247 | 174 724 315 34 Hop . | . . . . Pick Up 34 | 8 21 2 3 Fast Attach . | . . . . Attach 17 | 5 7 1 4 Detach 1 | . 1 . . Swap 17 | . 9 8 . Drop 10 | . 10 . . Fire 68 | 7 41 15 5 Melee . | . . . . Ram . | . . . . Kick . | . . . . Crush . | . . . . Escape Stasis . | . . . . Rewire . | . . . . Trap . | . . . . Miscellaneous . | . . . . Route ------- -11/Scrapyard -10/Materials (discovered 3 exits: *Mat x2 / *Min) -10/Mines (discovered 2 exits: *Mat / [*Exi]) -10/Exiles History --------- Turn | Location | Event 11 | -11/Scrapyard | Discovered new exit (range 16) 306 | -11/Scrapyard | Entered Materials 307 | -10/Materials | Build established: Mutant 520 | -10/Materials | Discovered new exit (range 4) 535 | -10/Materials | Identified exit to Materials 718 | -10/Materials | Discovered new exit (range 13) 780 | -10/Materials | Identified exit to Mines 1008 | -10/Materials | Discovered exit to Materials (range 15) 1463 | -10/Materials | Entered Mines 1550 | -10/Mines | Learned location of Storage (-8) 1877 | -10/Mines | Escorted by a lone wolf Derelict 1949 | -10/Mines | Discovered exit to Materials (range 5) 2057 | -10/Mines | Deemed a non-threat by the Exiles lab entrance 2059 | -10/Mines | Discovered new exit (range 5) 2100 | -10/Mines | Crushed by falling debris 2100 | -10/Mines | Core integrity fell below 50% 2100 | -10/Mines | System corruption reached 10% 2120 | -10/Mines | Entered Exiles 2120 | -10/Exiles | Accompanied by 1 ally 2131 | -10/Exiles | Lost 3 parts (1p1u1w) 2169 | -10/Exiles | Met 8R-AWN 2172 | -10/Exiles | Attacked by the Exiles 2195 | -10/Exiles | Core integrity fell below 20% 2196 | -10/Exiles | Destroyed by as-69797 with Assembled Heavy Rifle Last Messages --------------- 02184_ HV Slug penetrates Wall. 02184_ Penetrated by HV Slug. 02184_ HV Slug penetrates Wall. 02187_ Knocked back. 02189_ as-70351 destroyed. 02190_ Lgt. Assault Rifle destroyed. 02190_ System corrupted by crushing effect (+1). 02190_ Knocked back. 02191_ Aluminum Leg destroyed. 02191_ as-21291 destroyed. 02193_ Sml. Laser destroyed. 02194_ Penetrated by HV Slug. 02194_ HV Slug penetrates Wall. 02194_ Penetrated by HV Slug. 02194_ HV Slug penetrates Wall. 02194_ as-11961 destroyed. 02196_ Penetrated by HV Slug. 02196_ HV Slug penetrates Wall. 02196_ Penetrated by HV Slug. 02196_ HV Slug penetrates Wall. Map ----- +----------------------------------------------------+ | ?????????????????????????????????????????????????? | | ?????????????????????????????????????????????????? | | ?????????????????????????????????????????????????? | | ?????????????????????????????????????????????????? | | ?????????????????????????????????????????????????? | | ?????????????????????????????????????????????????? | | ?????????????????????????????????????????????????? | | ?????????????????????????????????????????????????? | | ?????????????????????????????????????????????????? | | ?????????????????????????????????????????????????? | | ?????????????????????????????????????????????????? | | ?????????????????????????????????????????????????? | | ?????????????????????????????????????????????????? | | ?????????????????????????????????????? ??????????? | | ????????????????????????????????????? ????????? | | ????????????????????????????????????# #????????? | | ???????????????????????????????????# ##???????? | | ??????????????????????????????????# #???????? | | ??????????????###?????????????????# #???????? | | ?????????????##" ???????????????## ????????? | | ?????????????#" ??????????????## #?????????? | | ????????????##" #?????????????# #?????????? | | ??????????### ###????????### #??????????? | | ??????????# ########## #??????????? | | ??????????# a a #""""## #???????????? | | ?????????# %g @ ;#??????????? | | ???? ## % a #??????????? | | ????????????????## ##?????????? | | ????????????????#"" ;### a ###???????? | | ????????????????######;#?#### g ###?????? | | ?????????????????????###????##### ##????? | | ????????????????????????????????### #????? | | ??????????????????????????????????### #????? | | ????????????????????????????????????### #????? | | ?????????????????????????????????????#" ##???? | | ?????????????????????????????????????#### ###?? | | ????????????????????????????????????????# ##? | | ????????????????????????????????????????## ## | | ?????????????????????????????????????????### | | ???????????????????????????????????????????# # | | ???????????????????????????????????????????## ## | | ????????????????????????????????????????????#####? | | ?????????????????????????????????????????????????? | | ?????????????????????????????????????????????????? | | ?????????????????????????????????????????????????? | | ?????????????????????????????????????????????????? | | ?????????????????????????????????????????????????? | | ?????????????????????????????????????????????????? | | ?????????????????????????????????????????????????? | | ?????????????????????????????????????????????????? | +----------------------------------------------------+ Best States ------------- Heat Dissipation 25 Energy Generation 12 Energy Capacity 265 Matter Stores 300 Matter Capacity 350 Sight Range 16 Terrain Scan Density 10 Evasion (%) 40 Recoil Reduction 2 Item Schematics ----------------- None Robot Schematics ------------------ None Fabricated ------------ Nothing Alien Tech Used ----------------- None Achievements -------------- System Compromised Unlikely Earthworm Challenges ------------ None Game ------ Seed GreatHeartMagmablaster Manual? 0 Play Time 00:36:35 Cumulative 3.9 hours Start 2021.12.21 @ 21:55:45 End 2021.12.22 @ 18:30:38 Sessions 2 Manual Loads 0 Difficulty Rogue Special Mode None Game No. 5 Rogue 5 Adventurer 0 Explorer 0 Win Type - Total 0 Types 0/0/0/0/0/0/0/0/0 Lore% 2 Gallery% 7 Achievement% 6 Wizard Run 0 Options --------- ASCII 0 Keyboard 0 Movement Mouse Keybinds 0 Fullscreen 2 Font 18/SmallcapsGlow Map View 76x50 Tactical HUD 1 Map Filters NONE Filters NONE Steam 1 RUN: 76c0b305-632a-4749-93ab-1b313001f199